bitfinex-derivatives/quotes_SOLF0:USTF0_20260306
["timestamp","ask_amount","ask_price","bid_price","bid_amount"]
[1772837218665,7.70245742,84.931,84.89,14.23044227]
[1772837218867,7.6752944,84.93,84.89,3.62844227]
[1772837219057,7.70245742,84.931,84.89,3.62844227]
[1772837219263,7.6752944,84.93,84.89,3.62844227]
[1772837219564,7.70245742,84.931,84.89,3.62844227]
[1772837219764,7.67608039,84.93,84.897,10.601]
[1772837220062,7.70245742,84.931,84.897,10.601]
[1772837220264,15.43853609,84.93,84.897,10.601]
[1772837220458,7.67608039,84.929,84.897,10.601]
[1772837220666,7.7624557,84.93,84.897,10.601]
[1772837220862,7.67662587,84.929,84.897,10.601]
[1772837221165,7.7624557,84.93,84.897,10.601]
[1772837221365,7.67780928,84.929,84.897,10.601]
[1772837221564,7.7624557,84.93,84.897,10.601]
[1772837221763,7.67780934,84.929,84.897,10.601]
[1772837221963,7.7624557,84.93,84.897,10.601]
[1772837222861,7.67876152,84.929,84.897,10.601]
[1772837223067,7.76172029,84.927,84.89,3.62844227]
[1772837223267,7.76172029,84.925,84.89,3.62844227]
[1772837225561,7.68132735,84.924,84.89,3.62844227]
[1772837225767,7.76124233,84.922,84.889,10.602]
[1772837225962,7.68132735,84.921,84.889,10.602]
[1772837226161,7.76124233,84.919,84.889,10.602]
[1772837227166,7.76124233,84.919,84.89,3.62844227]
[1772837227568,7.75884969,84.918,84.89,3.62844227]
[1772837228073,7.75884969,84.941,84.891,10.602]
[1772837228265,7.75884969,84.939,84.891,10.602]
[1772837228469,7.75884969,84.937,84.891,10.602]
[1772837228669,7.75884969,84.935,84.891,10.602]
[1772837228869,7.76175768,84.933,84.891,10.602]
[1772837229170,7.76175768,84.931,84.891,10.602]
[1772837229468,7.76175768,84.929,84.891,10.602]
[1772837229673,7.76175768,84.927,84.891,10.602]
[1772837229971,7.68223897,84.926,84.891,10.602]
[1772837230172,7.68223897,84.925,84.891,10.602]
[1772837230372,7.76175768,84.927,84.891,10.602]
[1772837230671,7.68331758,84.926,84.891,10.602]
[1772837230873,7.68331758,84.925,84.891,10.602]
[1772837231071,7.76106149,84.937,84.891,10.602]
[1772837231272,7.68331845,84.936,84.891,10.602]
[1772837231472,7.76106149,84.934,84.891,10.602]
[1772837231772,7.76106149,84.932,84.9,3.62844227]
[1772837231972,7.76106149,84.93,84.9,3.62844227]
[1772837232173,15.44437994,84.929,84.9,3.62844227]
[1772837232368,7.68331845,84.928,84.899,10.601]
[1772837232573,15.44437994,84.927,84.9,3.62844227]
[1772837232768,8.92433176,84.954,84.9,3.62844227]
[1772837232769,7.76106149,84.937,84.9,3.62844227]
[1772837233071,7.68324198,84.936,84.9,3.62844227]
[1772837233270,7.68324198,84.935,84.9,3.62844227]
[1772837233472,7.68324198,84.934,84.902,10.6]
[1772837233674,7.68324198,84.933,84.91,3.62844227]
[1772837233874,7.76106149,84.937,84.91,3.62844227]
[1772837234068,7.68357338,84.936,84.91,3.62844227]
[1772837234269,7.68357338,84.935,84.91,3.62844227]
[1772837234469,7.68357338,84.934,84.91,3.62844227]
[1772837234671,7.68357338,84.933,84.91,3.62844227]
[1772837234872,7.76106149,84.937,84.91,3.62844227]
[1772837235068,7.6839055,84.936,84.91,3.62844227]
[1772837235273,7.6839055,84.935,84.91,3.62844227]
[1772837235580,7.75915862,84.959,84.92,3.62844227]
[1772837235878,10.9853975,84.977,84.92,3.62844227]
[1772837235879,7.75915862,84.957,84.92,3.62844227]
[1772837236077,7.68493728,84.956,84.92,3.62844227]
[1772837236278,7.68493728,84.955,84.92,3.62844227]
[1772837236576,7.68493728,84.954,84.92,3.62844227]
[1772837236777,7.68493728,84.953,84.923,10.598]
[1772837236978,7.68493728,84.952,84.923,10.598]
[1772837237174,7.68493728,84.951,84.923,10.598]
[1772837237373,7.68493728,84.95,84.923,10.598]
[1772837237573,7.68493728,84.949,84.923,10.598]
[1772837237774,7.75970935,84.947,84.914,10.599]
[1772837237978,7.75970935,84.945,84.914,10.599]
[1772837238172,7.68493728,84.944,84.914,10.599]
[1772837238372,7.68493728,84.943,84.914,10.599]
[1772837238575,7.68493728,84.942,84.914,10.599]
[1772837238777,7.75970935,84.945,84.91,3.62844227]
[1772837238778,7.68493728,84.941,84.91,3.62844227]
[1772837238973,7.7585778,84.939,84.905,10.6]
[1772837239179,7.7585778,84.937,84.89,3.62844227]
[1772837239478,7.7585778,84.935,84.89,3.62844227]
[1772837239674,3.62844227,84.95,84.89,3.62844227]
[1772837239675,7.7585778,84.933,84.896,10.601]
[1772837239880,7.7585778,84.931,84.896,10.601]
[1772837240076,7.7585778,84.929,84.89,3.62844227]
[1772837240272,7.7585778,84.927,84.9,3.62844227]
[1772837240476,7.68493728,84.926,84.9,3.62844227]
[1772837240678,7.68493728,84.925,84.9,3.62844227]
[1772837240879,7.68493728,84.924,84.9,3.62844227]
[1772837241077,7.7585778,84.927,84.9,3.62844227]
[1772837241277,7.692003,84.926,84.9,3.62844227]
[1772837241581,7.692003,84.925,84.892,10.602]
[1772837241881,7.692003,84.924,84.892,10.602]
[1772837242080,7.7585778,84.927,84.892,10.602]
[1772837242280,7.69213467,84.926,84.892,10.602]
[1772837242477,7.76286238,84.944,84.9,3.62844227]
[1772837242681,7.6922125,84.943,84.9,3.62844227]
[1772837242879,7.6922125,84.942,84.9,3.62844227]
[1772837243080,7.6922125,84.941,84.9,3.62844227]
[1772837243282,7.6922125,84.94,84.9,3.62844227]
[1772837243481,7.6922125,84.939,84.9,3.62844227]
[1772837243681,7.6922125,84.938,84.9,3.62844227]
[1772837243879,7.6922125,84.937,84.907,10.6]
[1772837244079,7.6922125,84.936,84.907,10.6]
[1772837244279,7.76286238,84.944,84.907,10.6]
[1772837244280,7.6922125,84.935,84.907,10.6]
[1772837244480,7.6922125,84.934,84.907,10.6]
[1772837244681,7.6922125,84.933,84.907,10.6]
[1772837244882,7.6922125,84.932,84.907,10.6]
[1772837245186,7.76286238,84.944,84.907,10.6]
[1772837245481,7.69233776,84.943,84.882,21.95077596]
[1772837245685,7.69233776,84.942,84.9,3.62844227]
[1772837245881,7.75968503,84.94,84.884,21.95077596]
[1772837246086,7.75968503,84.938,84.88,3.62844227]
[1772837246282,7.75968503,84.936,84.88,3.62844227]
[1772837246476,7.75968503,84.934,84.88,3.62844227]
[1772837246684,7.75968503,84.932,84.88,3.62844227]
[1772837246881,7.76289402,84.93,84.89,10.602]
[1772837247185,7.76289402,84.928,84.89,10.602]
[1772837247374,7.69233776,84.927,84.89,10.602]
[1772837247579,7.76289402,84.925,84.89,10.602]
[1772837247882,7.76289402,84.923,84.89,10.602]
[1772837248077,7.76289402,84.921,84.89,10.602]
[1772837248278,7.76289402,84.921,84.899,10.601]
[1772837248685,7.76289402,84.945,84.913,10.599]
[1772837248884,7.69144102,84.944,84.913,10.599]
[1772837249085,7.69144102,84.943,84.913,10.599]
[1772837249286,0.00044102,84.942,84.92,3.62844227]
[1772837249485,7.80337527,84.957,84.92,3.62844227]
[1772837249780,7.80337527,84.957,84.88,21.207]
[1772837249781,7.80337527,84.957,84.91,3.62844227]
[1772837250179,7.80337527,84.957,84.922,10.598]
[1772837258893,7.80337527,84.957,84.913,10.599]
[1772837261194,8.91208277,84.969,84.913,10.599]
[1772837261195,7.76535079,84.955,84.913,10.599]
[1772837261394,7.76535079,84.953,84.913,10.599]
[1772837261593,7.60478552,84.952,84.913,10.599]
[1772837261788,7.76535079,84.95,84.913,10.599]
[1772837262488,7.76535079,84.967,84.921,10.598]
[1772837262695,7.76535079,84.965,84.921,10.598]
[1772837262998,15.37009874,84.964,84.921,10.598]
[1772837263191,7.60449858,84.963,84.921,10.598]
[1772837263494,7.60449858,84.962,84.928,10.597]
[1772837263695,7.60449858,84.961,84.928,10.597]
[1772837263893,7.60449858,84.96,84.928,10.597]
[1772837264090,7.60449858,84.959,84.928,10.597]
[1772837264287,7.60449858,84.958,84.928,10.597]
[1772837264488,7.76560016,84.963,84.928,10.597]
[1772837264686,7.60323194,84.962,84.928,10.597]
[1772837264888,7.77731266,84.96,84.928,10.597]
[1772837265098,7.77731266,84.958,84.928,10.597]
[1772837268099,7.77734481,84.975,84.928,10.597]
[1772837268299,7.77734481,84.973,84.928,10.597]
[1772837268489,7.77734481,84.971,84.928,10.597]
[1772837268799,7.77734481,84.969,84.928,10.597]
[1772837268998,7.77181833,84.967,84.928,10.597]
[1772837269200,7.5911392,84.966,84.928,10.597]
[1772837269494,7.77181833,84.964,84.928,10.597]
[1772837269701,7.5911392,84.963,84.928,10.597]
[1772837269896,7.5911392,84.962,84.928,10.597]
[1772837270097,7.5911392,84.961,84.928,10.597]
[1772837270297,7.5911392,84.96,84.928,10.597]
[1772837270493,7.77181833,84.964,84.928,10.597]
[1772837270695,15.36201081,84.963,84.928,10.597]
[1772837270900,7.59019248,84.962,84.928,10.597]
[1772837271201,7.77182709,84.96,84.928,10.597]
[1772837274396,7.77182709,84.96,84.92,3.62766643]
[1772837274397,7.77182709,84.96,84.92,10.598]
[1772837274703,7.75588578,84.958,84.91,3.62766643]
[1772837274895,7.53225602,84.957,84.91,3.62766643]
[1772837275091,7.75588578,84.958,84.91,3.62766643]
[1772837275293,7.53264557,84.957,84.91,3.62766643]
[1772837275495,7.75588578,84.958,84.91,3.62766643]
[1772837275701,7.53275942,84.957,84.91,3.62766643]
[1772837275891,7.75588578,84.958,84.92,3.62766643]
[1772837276493,7.76145171,84.972,84.931,10.597]
[1772837276699,7.53334633,84.971,84.931,10.597]
[1772837276894,7.53334633,84.97,84.931,10.597]
[1772837277097,7.53334633,84.969,84.931,10.597]
[1772837277298,7.53334633,84.968,84.93,3.62766643]
[1772837277500,15.30032004,84.967,84.93,3.62766643]
[1772837277696,15.30032004,84.966,84.93,3.62766643]
[1772837277901,7.53334633,84.965,84.94,10.596]
[1772837278101,7.53334633,84.964,84.93,3.62766643]
[1772837278302,7.53334633,84.963,84.93,3.62766643]
[1772837278606,7.76697371,84.966,84.93,3.62766643]
[1772837278804,7.53332541,84.965,84.93,3.62766643]
[1772837279005,7.53332541,84.964,84.932,10.597]
[1772837279205,7.53332541,84.963,84.932,10.597]
[1772837279503,7.76697371,84.966,84.932,10.597]
[1772837279704,7.53314331,84.965,84.932,10.597]
[1772837279904,7.53314331,84.964,84.932,10.597]
[1772837280103,7.53314331,84.963,84.932,10.597]
[1772837280304,7.76697371,84.966,84.932,10.597]
[1772837280507,7.53318114,84.965,84.932,10.597]
[1772837280705,7.53318114,84.964,84.932,10.597]
[1772837280904,7.53318114,84.963,84.932,10.597]
[1772837281105,7.76697371,84.966,84.932,10.597]
[1772837281306,7.53271117,84.965,84.932,10.597]
[1772837281606,7.53271117,84.964,84.932,10.597]
[1772837281801,7.76697371,84.966,84.932,10.597]
[1772837281998,7.53271118,84.965,84.932,10.597]
[1772837282198,7.53271118,84.964,84.932,10.597]
[1772837282398,7.76697371,84.966,84.932,10.597]
[1772837282600,7.53243746,84.965,84.932,10.597]
[1772837282907,7.53243746,84.964,84.932,10.597]
[1772837283208,7.76697371,84.966,84.932,10.597]
[1772837283408,7.53217064,84.965,84.932,10.597]
[1772837283605,7.53217064,84.964,84.94,3.62766643]
[1772837283810,7.76857351,84.979,84.94,3.62766643]
[1772837284010,15.30077339,84.978,84.94,3.62766643]
[1772837284212,7.53219988,84.977,84.94,3.62766643]
[1772837284412,7.53219988,84.976,84.94,3.62766643]
[1772837284610,7.53219988,84.975,84.94,3.62766643]
[1772837284811,7.53219988,84.974,84.94,3.62766643]
[1772837285012,7.53219988,84.973,84.94,3.62766643]
[1772837285311,7.53219988,84.972,84.93,3.62766643]
[1772837285512,7.53219988,84.971,84.93,3.62766643]
[1772837285709,7.53219988,84.97,84.93,3.62766643]
[1772837285911,7.53219988,84.969,84.948,10.595]
[1772837286214,7.53219988,84.968,84.948,10.595]
[1772837286515,7.53219988,84.967,84.948,10.595]
[1772837286709,7.53219988,84.966,84.948,10.595]
[1772837287009,7.53219988,84.965,84.948,10.595]
[1772837287209,7.53517756,84.964,84.948,10.595]
[1772837287416,7.76857351,84.977,84.948,10.595]
[1772837287614,7.75174942,84.975,84.948,10.595]
[1772837287915,7.75174942,84.973,84.948,10.595]
[1772837288120,7.53527915,84.972,84.948,10.595]
[1772837288408,7.53527915,84.971,84.948,10.595]
[1772837288614,7.75174942,84.973,84.948,10.595]
[1772837288813,7.53523227,84.972,84.948,10.595]
[1772837289015,7.53523227,84.971,84.948,10.595]
[1772837289214,7.75174942,84.973,84.948,10.595]
[1772837289414,7.53530951,84.972,84.948,10.595]
[1772837289615,7.53530951,84.971,84.948,10.595]
[1772837289815,7.75174942,84.973,84.948,10.595]
[1772837290117,7.53530951,84.972,84.948,10.595]
[1772837290414,7.53530951,84.971,84.948,10.595]
[1772837290617,7.53530951,84.97,84.948,10.595]
[1772837290809,7.75174942,84.973,84.948,10.595]
[1772837291118,7.53551311,84.972,84.948,10.595]
[1772837291318,7.53551311,84.971,84.948,10.595]
[1772837291515,7.53551311,84.97,84.948,10.595]
[1772837291815,7.75174942,84.973,84.948,10.595]
[1772837292015,7.53712036,84.972,84.948,10.595]
[1772837292219,7.75174942,84.973,84.948,10.595]
[1772837292220,7.53712036,84.971,84.948,10.595]
[1772837292411,7.53712036,84.97,84.948,10.595]
[1772837292612,7.7460178,84.971,84.948,10.595]
[1772837292613,7.53712036,84.969,84.948,10.595]
[1772837292817,7.53712036,84.968,84.948,10.595]
[1772837293017,7.7460178,84.971,84.948,10.595]
[1772837293217,7.54074327,84.97,84.948,10.595]
[1772837293421,7.54074327,84.969,84.948,10.595]
[1772837293615,7.54074327,84.968,84.948,10.595]
[1772837293815,7.7460178,84.971,84.948,10.595]
[1772837293816,7.54074327,84.967,84.948,10.595]
[1772837294018,7.54074327,84.966,84.948,10.595]
[1772837294219,7.7460178,84.971,84.948,10.595]
[1772837294418,7.54442239,84.97,84.948,10.595]
[1772837294618,7.54442239,84.969,84.948,10.595]
[1772837294920,7.54442239,84.968,84.948,10.595]
[1772837295121,7.54442239,84.967,84.948,10.595]
[1772837295317,7.54442239,84.966,84.948,10.595]
[1772837295520,7.7460178,84.971,84.948,10.595]
[1772837295812,7.5442493,84.97,84.948,10.595]
[1772837296013,7.5442493,84.969,84.948,10.595]
[1772837296213,7.5442493,84.968,84.948,10.595]
[1772837296412,7.5442493,84.967,84.948,10.595]
[1772837296720,7.5442493,84.966,84.948,10.595]
[1772837296920,7.7460178,84.971,84.948,10.595]
[1772837297119,7.54396874,84.97,84.948,10.595]
[1772837297320,7.54396874,84.969,84.948,10.595]
[1772837297525,7.54396874,84.968,84.948,10.595]
[1772837297823,7.54396874,84.967,84.94,10.596]
[1772837298019,7.54396874,84.966,84.94,10.596]
[1772837298219,7.7460178,84.971,84.94,10.596]
[1772837298419,7.53514779,84.97,84.94,10.596]
[1772837298621,7.53514779,84.969,84.94,10.596]
[1772837298822,7.53514779,84.968,84.948,10.595]
[1772837299122,7.53514779,84.967,84.948,10.595]
[1772837299318,7.53514779,84.966,84.948,10.595]
[1772837299513,7.7372777,84.982,84.948,10.595]
[1772837299719,7.53523465,84.981,84.948,10.595]
[1772837300022,7.7372777,84.979,84.948,10.595]
[1772837300219,15.27251235,84.978,84.948,10.595]
[1772837300421,7.53523465,84.977,84.948,10.595]
[1772837300620,7.53523465,84.976,84.948,10.595]
[1772837300815,7.53523465,84.975,84.948,10.595]
[1772837301122,7.53523465,84.974,84.948,10.595]
[1772837301321,7.53523465,84.973,84.948,10.595]
[1772837301522,7.53523465,84.972,84.948,10.595]
[1772837301724,7.53523465,84.971,84.948,10.595]
[1772837301923,7.53523465,84.97,84.948,10.595]
[1772837302118,7.53523465,84.969,84.948,10.595]
[1772837302424,7.53523465,84.968,84.948,10.595]
[1772837302617,7.53523465,84.967,84.94,10.596]
[1772837302813,7.53523465,84.966,84.94,10.596]
[1772837303022,7.53523465,84.965,84.94,10.596]
[1772837303223,7.73550856,84.967,84.94,10.596]
[1772837303522,7.53627351,84.966,84.94,10.596]
[1772837303721,7.53627351,84.965,84.94,10.596]
[1772837303926,7.73550856,84.967,84.94,10.596]
[1772837304224,7.53627317,84.966,84.94,10.596]
[1772837304424,7.53627317,84.965,84.94,10.596]
[1772837304727,7.73550856,84.967,84.946,10.595]
[1772837304922,7.53673123,84.966,84.946,10.595]
[1772837305122,7.53673123,84.965,84.946,10.595]
[1772837305422,7.73550856,84.967,84.946,10.595]
[1772837305725,7.53727941,84.966,84.946,10.595]
[1772837305923,7.53727941,84.965,84.946,10.595]
[1772837306123,7.73550856,84.967,84.946,10.595]
[1772837306421,7.53793922,84.966,84.946,10.595]
[1772837306621,3.62766643,84.99,84.946,10.595]
[1772837306622,7.53793922,84.965,84.946,10.595]
[1772837306822,7.72553438,84.981,84.946,10.595]
[1772837307028,7.53799019,84.98,84.946,10.595]
[1772837307227,7.72004547,84.978,84.946,10.595]
[1772837307529,7.72004547,84.976,84.946,10.595]
[1772837307717,7.53799019,84.975,84.946,10.595]
[1772837307917,7.53799019,84.974,84.946,10.595]
[1772837308126,7.53799019,84.973,84.946,10.595]
[1772837308427,7.53799019,84.972,84.946,10.595]
[1772837308632,7.53799019,84.971,84.946,10.595]
[1772837308929,7.53799019,84.97,84.946,10.595]
[1772837309129,7.53799019,84.969,84.946,10.595]
[1772837309329,7.53799019,84.968,84.946,10.595]
[1772837309528,7.53799019,84.967,84.946,10.595]
[1772837309728,7.53799019,84.966,84.946,10.595]
[1772837309929,7.72004547,84.976,84.946,10.595]
[1772837310232,7.53890887,84.975,84.946,10.595]
[1772837310427,7.53890887,84.974,84.946,10.595]
[1772837310636,7.72004547,84.976,84.946,10.595]
[1772837310637,7.53890887,84.973,84.946,10.595]
[1772837310932,7.53890887,84.972,84.946,10.595]
[1772837311128,7.53890887,84.971,84.946,10.595]
[1772837311327,7.53890887,84.97,84.946,10.595]
[1772837311632,7.53890887,84.969,84.946,10.595]
[1772837311825,7.53890887,84.968,84.946,10.595]
[1772837312027,7.72004547,84.976,84.93,3.62766643]
[1772837312324,7.53857686,84.975,84.93,3.62766643]
[1772837312530,7.53857686,84.974,84.93,3.62560491]
[1772837312727,7.53857686,84.973,84.94,3.62560491]
[1772837312928,7.53857686,84.972,84.949,10.595]
[1772837313129,7.53857686,84.971,84.949,10.595]
[1772837313328,7.72004547,84.976,84.949,10.595]
[1772837313631,7.53681606,84.975,84.949,10.595]
[1772837313833,7.53681606,84.974,84.949,10.595]
[1772837314021,7.53681606,84.973,84.949,10.595]
[1772837314228,7.53681606,84.972,84.949,10.595]
[1772837314428,7.53681606,84.971,84.949,10.595]
[1772837314628,7.72004547,84.976,84.949,10.595]
[1772837314823,7.53666779,84.975,84.949,10.595]
[1772837315023,7.53666779,84.974,84.949,10.595]
[1772837315233,7.53666779,84.973,84.949,10.595]
[1772837315436,7.53666779,84.972,84.949,10.595]
[1772837315629,7.53666779,84.971,84.949,10.595]
[1772837315836,7.66412768,84.978,84.949,10.595]
[1772837316136,7.53659349,84.977,84.949,10.595]
[1772837316339,7.53659349,84.976,84.956,10.594]
[1772837316537,7.53659349,84.975,84.956,10.594]
[1772837316838,7.53659349,84.974,84.956,10.594]
[1772837317134,7.65131448,84.987,84.956,10.594]
[1772837317331,7.5363567,84.986,84.956,10.594]
[1772837317635,7.5363567,84.985,84.956,10.594]
[1772837317834,7.5363567,84.984,84.956,10.594]
[1772837318034,7.5363567,84.983,84.956,10.594]
[1772837318332,7.5363567,84.982,84.963,10.593]
[1772837318535,7.5363567,84.981,84.963,10.593]
[1772837318738,7.5363567,84.98,84.963,10.593]
[1772837318928,7.5363567,84.979,84.963,10.593]
[1772837319131,7.5363567,84.978,84.963,10.593]
[1772837319438,7.5363567,84.977,84.963,10.593]
[1772837319738,7.5363567,84.976,84.963,10.593]
[1772837319940,7.5363567,84.975,84.963,10.593]
[1772837320138,7.65131448,84.987,84.963,10.593]
[1772837320340,7.53564066,84.986,84.963,10.593]
[1772837320540,7.53564066,84.985,84.963,10.593]
[1772837320741,7.53564066,84.984,84.963,10.593]
[1772837321041,7.53564066,84.983,84.963,10.593]
[1772837321230,7.53564066,84.982,84.963,10.593]
[1772837321435,7.53564066,84.981,84.963,10.593]
[1772837321635,7.53564066,84.98,84.963,10.593]
[1772837321931,7.53564066,84.979,84.963,10.593]
[1772837322136,7.53564066,84.978,84.963,10.593]
[1772837322332,7.53564066,84.977,84.963,10.593]
[1772837322539,7.53564066,84.976,84.963,10.593]
[1772837322841,7.53564066,84.975,84.955,10.594]
[1772837323036,7.53564066,84.974,84.955,10.594]
[1772837323239,7.65131448,84.987,84.955,10.594]
[1772837323438,7.58352836,84.985,84.955,10.594]
[1772837323638,7.58352836,84.983,84.955,10.594]
[1772837323836,7.58352836,84.981,84.955,10.594]
[1772837324140,7.58352836,84.979,84.955,10.594]
[1772837324443,7.58352836,84.977,84.955,10.594]
[1772837324638,7.58352836,84.975,84.955,10.594]
[1772837324842,7.53647374,84.974,84.948,10.595]
[1772837325044,7.53647374,84.973,84.948,10.595]
[1772837325241,7.58352836,84.975,84.948,10.595]
[1772837325543,7.53648427,84.974,84.948,10.595]
[1772837325742,7.53648427,84.973,84.948,10.595]
[1772837325943,7.58352836,84.975,84.948,10.595]
[1772837326135,7.53677787,84.974,84.948,10.595]
[1772837326333,7.53677787,84.973,84.948,10.595]
[1772837326538,7.53677787,84.972,84.948,10.595]
[1772837326740,7.58352836,84.975,84.948,10.595]
[1772837326942,7.60023797,84.973,84.948,10.595]
[1772837327142,7.53703844,84.972,84.948,10.595]
[1772837327342,7.60023797,84.973,84.948,10.595]
[1772837327542,7.53736738,84.972,84.948,10.595]
[1772837327736,7.54530995,84.971,84.94,10.596]
[1772837327939,7.60023797,84.972,84.94,10.596]
[1772837328142,7.60023797,84.969,84.94,10.596]
[1772837328340,7.60023797,84.967,84.94,10.596]
[1772837330236,7.54683862,84.966,84.94,10.596]
[1772837330442,7.60210911,84.965,84.94,10.596]
[1772837331949,7.54728945,84.964,84.94,10.596]
[1772837332248,15.14830577,84.963,84.94,10.596]
[1772837332449,7.60101632,84.961,84.94,10.596]
[1772837338959,7.60101632,84.961,84.94,14.22160491]
[1772837342959,7.60603167,84.989,84.94,14.22160491]
[1772837343259,7.60603167,84.987,84.94,14.22160491]
[1772837343459,7.60603167,84.985,84.94,14.22160491]
[1772837343661,7.60603167,84.983,84.94,10.596]
[1772837343854,7.60603167,84.981,84.94,10.596]
[1772837344060,7.60603167,84.979,84.94,10.596]
[1772837344260,7.60603167,84.977,84.94,10.596]
[1772837344462,7.60603167,84.975,84.94,10.596]
[1772837344654,7.54722339,84.974,84.94,10.596]
[1772837344859,7.60093301,84.972,84.94,10.596]
[1772837345062,7.60093301,84.97,84.94,10.596]
[1772837345258,7.54722339,84.969,84.94,10.596]
[1772837345461,15.1481564,84.968,84.94,10.596]
[1772837345762,7.60093301,84.966,84.94,10.596]
[1772837345962,7.54722339,84.965,84.94,10.596]
[1772837346164,7.60093301,84.966,84.94,10.596]
[1772837346365,7.54743525,84.965,84.94,10.596]
[1772837346665,7.60093301,84.966,84.94,10.596]
[1772837346858,7.54743525,84.965,84.94,10.596]
[1772837347054,7.60093301,84.966,84.94,10.596]
[1772837347253,7.54743525,84.965,84.94,10.596]
[1772837347456,7.54743525,84.964,84.94,10.596]
[1772837347754,7.60093301,84.966,84.94,10.596]
[1772837347959,7.54751457,84.965,84.94,10.596]
[1772837348155,7.54751457,84.964,84.94,10.596]
[1772837348360,7.60093301,84.966,84.94,10.596]
[1772837348557,7.5475909,84.965,84.94,10.596]
[1772837348763,7.5475909,84.964,84.94,14.22160491]
[1772837348959,7.60093301,84.966,84.94,14.22160491]
[1772837349160,7.5476053,84.965,84.94,14.22160491]
[1772837349361,7.60093301,84.966,84.94,14.22160491]
[1772837349561,7.5477033,84.965,84.94,14.22160491]
[1772837349762,7.60093301,84.966,84.94,14.22160491]
[1772837349965,7.5477033,84.965,84.94,14.22160491]
[1772837350164,7.60093301,84.966,84.94,14.22160491]
[1772837350366,7.5478046,84.965,84.94,14.22160491]
[1772837350562,7.60093301,84.966,84.94,14.22160491]
[1772837350768,7.5478046,84.965,84.94,14.22160491]
[1772837350970,7.60093301,84.966,84.94,14.22160491]
[1772837351165,7.5478046,84.965,84.94,14.22160491]
[1772837351366,7.54789489,84.964,84.94,14.22160491]
[1772837351667,7.60093301,84.966,84.94,14.22160491]
[1772837351865,7.54789489,84.965,84.94,14.22160491]
[1772837352069,7.54789489,84.964,84.94,14.22160491]
[1772837352368,7.60093301,84.966,84.94,14.22160491]
[1772837352570,7.54787575,84.965,84.94,14.22160491]
[1772837352770,7.54787575,84.964,84.94,10.596]
[1772837352971,7.60093301,84.966,84.94,10.596]
[1772837353270,7.54787575,84.965,84.94,10.596]
[1772837353470,7.54787575,84.964,84.94,10.596]
[1772837353669,7.60093301,84.966,84.94,10.596]
[1772837353870,7.54785684,84.965,84.94,10.596]
[1772837354068,7.54785684,84.964,84.94,10.596]
[1772837354268,7.60093301,84.966,84.94,10.596]
[1772837354468,7.54783795,84.965,84.94,10.596]
[1772837354669,7.54783795,84.964,84.94,10.596]
[1772837354870,7.60093301,84.966,84.94,10.596]
[1772837355070,7.54783795,84.965,84.94,10.596]
[1772837355372,7.54783795,84.964,84.932,10.597]
[1772837355571,7.59368477,84.965,84.932,10.597]
[1772837355772,7.54781904,84.964,84.932,10.597]
[1772837356071,7.54781904,84.963,84.932,10.597]
[1772837356371,7.54781904,84.962,84.932,10.597]
[1772837356671,7.59368477,84.965,84.932,10.597]
[1772837356861,7.54764288,84.964,84.932,10.597]
[1772837357063,7.54764288,84.963,84.932,10.597]
[1772837357271,7.54764288,84.962,84.932,10.597]
[1772837357464,7.59368477,84.965,84.932,10.597]
[1772837357669,7.54749875,84.964,84.932,10.597]
[1772837357870,7.54749875,84.963,84.932,10.597]
[1772837358071,7.54749875,84.962,84.932,10.597]
[1772837358272,7.59368477,84.965,84.939,10.596]
[1772837358477,7.55206567,84.964,84.939,10.596]
[1772837358663,7.59368477,84.965,84.939,10.596]
[1772837358868,7.55206567,84.964,84.939,10.596]
[1772837359069,7.55201487,84.963,84.939,10.596]
[1772837359370,7.59368477,84.965,84.939,10.596]
[1772837360468,7.55209845,84.964,84.932,10.597]
[1772837360766,7.55204709,84.963,84.932,10.597]